fUSD/lending_fUSD_20240614
["ID","MTS","AMOUNT","RATE_DAILY","PERIOD"]
[329512203,1718409180496,-598.46,0.00026575,3]
[329512204,1718409180534,-2076.84,0.00026575,3]
[329512205,1718409180582,-682.08,0.00026575,3]
[329512206,1718409180612,-1822.84,0.00026575,3]
[329512207,1718409180668,-5529.61,0.00026575,3]
[329512208,1718409180714,-1655.24,0.00026575,3]
[329512209,1718409180768,-786.01,0.00026575,3]
[329512210,1718409180794,-3184.07,0.00026575,3]
[329512211,1718409180840,-574.58,0.00026575,3]
[329512212,1718409180855,-11746.88,0.00026575,3]
[329512213,1718409180904,-662.27,0.00026575,3]
[329512214,1718409180916,-1212.45,0.00026575,3]
[329512215,1718409180941,-6064.15,0.00026575,3]
[329512216,1718409180957,-658.84,0.00026575,3]
[329512217,1718409180973,-500.0,0.00026575,3]
[329512218,1718409181002,-1250.84,0.00026575,3]
[329512219,1718409181039,-1457.35,0.00026575,3]
[329512220,1718409181052,-2523.73,0.00026575,3]
[329512221,1718409181063,-521.47,0.00026575,3]
[329512222,1718409181073,-699.17,0.00026575,3]
[329512223,1718409181083,-500.0,0.00026575,3]
[329512224,1718409181107,-1061.25,0.00026575,3]
[329512225,1718409181247,-289.41952872,0.00026575,3]
[329512226,1718409181280,-896.88,0.00026575,3]
[329512227,1718409181294,-669.5,0.00026575,3]
[329512228,1718409181313,-532.32,0.00026575,3]
[329512229,1718409181332,-2252.2,0.00026575,3]
[329512230,1718409181346,-1329.78,0.00026575,3]
[329512231,1718409181362,-889.55,0.00026575,3]
[329512232,1718409181372,-500.0,0.00026575,3]
[329512233,1718409181420,-726.83,0.00026575,3]
[329512234,1718409181431,-1121.95,0.00026575,3]
[329512235,1718409181442,-500.0,0.00026575,3]
[329512236,1718409181482,-635.93,0.00026575,3]
[329512237,1718409181493,-2002.63,0.00026575,3]
[329512238,1718409181505,-500.0,0.00026575,3]
[329512239,1718409181523,-749.23,0.00026575,3]
[329512240,1718409181539,-1013.7,0.00026575,3]
[329512241,1718409181551,-1297.0,0.00026575,3]
[329512242,1718409181568,-1218.43,0.00026575,3]
[329512243,1718409181581,-814.13,0.00026575,3]
[329512244,1718409181599,-1069.53,0.00026575,3]
[329512245,1718409181611,-2089.69,0.00026575,3]
[329512246,1718409181644,-204.36861699,0.00026575,3]
[329512247,1718409181662,-728.21,0.00026575,3]
[329512248,1718409181708,-4506.65,0.00026575,3]
[329512249,1718409181721,-505.75,0.00026575,3]
[329512250,1718409181758,-312.33427298,0.00026575,3]
[329512251,1718409181769,-1722.19,0.00026575,3]
[329512252,1718409181800,-1029.14,0.00026575,3]
[329512253,1718409181812,-1126.29,0.00026575,3]
[329512254,1718409181824,-1013.4,0.00026575,3]
[329512255,1718409181835,-690.09,0.00026575,3]
[329512256,1718409181861,-2735.56,0.00026575,3]
[329512257,1718409181881,-2174.79,0.00026575,3]
[329512258,1718409181919,-725.51,0.00026575,3]
[329512259,1718409181931,-515.61744486,0.00026575,3]
[329512260,1718409181942,-3237.71,0.00026575,3]
[329512261,1718409181955,-817.48,0.00026575,3]
[329512262,1718409181974,-2378.83,0.00026575,3]
[329512263,1718409182000,-692.48,0.00026575,3]
[329512264,1718409182024,-1135.87,0.00026575,3]
[329512265,1718409182038,-156.565762,0.00026575,7]
[329512266,1718409182062,-155.85640551,0.00026586,2]
[329512267,1718409182085,-5447.24337825,0.000266,2]
[329512268,1718409182119,-153.04376479,0.00026603,2]
[329512269,1718409182153,-154.60031802,0.00026609,2]
[329512270,1718409182178,-160.12931359,0.00026614,2]
[329512271,1718409182189,-300.0,0.0002662,2]
[329512272,1718409182216,-150.0,0.0002662,2]
[329512273,1718409182236,-150.0,0.0002662,2]
[329512274,1718409182280,-150.0,0.0002662,2]
[329512275,1718409182306,-150.0,0.0002662,2]
[329512276,1718409182341,-150.0,0.0002662,2]
[329512277,1718409182355,-166.66666666,0.00026623,2]
[329512278,1718409182372,-154.60031802,0.0002663,2]
[329512279,1718409182389,-4928.91154559,0.0002663,2]
[329512280,1718409182401,-12338.52293741,0.00026636,2]
[329512281,1718409182417,-166.66666667,0.00026648,2]
[329512282,1718409182428,-150.0,0.00026667,4]
[329512283,1718409182452,-150.0,0.00026667,4]
[329512284,1718409182463,-457.50732763,0.00026677,2]
[329512285,1718409182482,-577.87975608,0.00026691,2]
[329512286,1718409182508,-150.0,0.000267,5]
[329512287,1718409182540,-586.37063159,0.00026714,2]
[329512288,1718409182566,-150.38481616,0.00026717,2]
[329512289,1718409182578,-2340.74889455,0.00026719,2]
[329512290,1718409182595,-2340.74889455,0.00026738,2]
[329512291,1718409182607,-577.87975608,0.00026742,2]
[329512292,1718409182646,-577.87975608,0.00026746,2]
[329512293,1718409182658,-157.43532193,0.0002683,2]
[329512294,1718409182677,-500.0,0.00026849,3]
[329512295,1718409182706,-749.79,0.00026849,3]
[329512296,1718409182717,-500.0,0.00026849,3]
[329512297,1718409182733,-600.48,0.00026849,3]
[329512298,1718409182761,-2000.0,0.00026849,3]
[329512299,1718409182773,-543.58259152,0.00026849,3]
[329512300,1718409182800,-500.0,0.00026849,3]
[329512301,1718409182820,-1018.08,0.00026849,3]
[329512302,1718409182840,-500.0,0.00026849,3]
[329512303,1718409182861,-315.15285435,0.00026849,3]
[329512304,1718409182893,-1175.7,0.00026849,3]
[329512305,1718409182906,-1691.46,0.00026849,3]
[329512306,1718409182916,-24506.13,0.00026849,3]
[329512307,1718409182927,-777.76,0.00026849,3]
[329512308,1718409182937,-1854.16,0.00026849,3]
[329512309,1718409182950,-1055.98,0.00026849,3]
[329512310,1718409182970,-500.0,0.00026849,3]
[329512311,1718409182986,-1198.09,0.00026849,3]
[329512312,1718409183001,-516.41,0.00026849,3]
[329512313,1718409183052,-615.26,0.00026849,3]
[329512314,1718409183097,-6231.18,0.00026849,3]
[329512315,1718409183110,-1046.77,0.00026849,3]
[329512316,1718409183138,-3586.27,0.00026849,3]
[329512317,1718409183176,-561.85,0.00026849,3]
[329512318,1718409183199,-968.93,0.00026849,3]
[329512319,1718409183232,-1857.88,0.00026849,3]
[329512320,1718409183262,-2183.55,0.00026849,3]
[329512321,1718409183280,-844.51,0.00026849,3]
[329512322,1718409183316,-836.87,0.00026849,3]
[329512323,1718409183340,-500.0,0.00026849,3]
[329512324,1718409183357,-1991.89,0.00026849,3]
[329512325,1718409183378,-5690.91,0.00026849,3]
[329512326,1718409183428,-969.41,0.00026849,3]
[329512327,1718409183477,-18610.37,0.00026849,3]
[329512328,1718409183486,-20167.93,0.00026849,3]
[329512329,1718409183509,-1674.49,0.00026849,3]
[329512330,1718409183519,-3030.53,0.00026849,3]
[329512331,1718409183537,-500.0,0.00026849,3]
[329512332,1718409183566,-966.56,0.00026849,3]
[329512333,1718409183597,-575.07,0.00026849,3]
[329512334,1718409183608,-598.46,0.00026849,3]
[329512335,1718409183620,-2076.84,0.00026849,3]
[329512336,1718409183668,-682.08,0.00026849,3]
[329512337,1718409183708,-1822.84,0.00026849,3]
[329512338,1718409183720,-5529.61,0.00026849,3]
[329512339,1718409183746,-1655.24,0.00026849,3]
[329512340,1718409183761,-786.01,0.00026849,3]
[329512341,1718409183772,-3184.07,0.00026849,3]
[329512342,1718409183782,-574.58,0.00026849,3]
[329512343,1718409183794,-11746.88,0.00026849,3]
[329512344,1718409183805,-662.27,0.00026849,3]
[329512345,1718409183847,-1212.45,0.00026849,3]
[329512346,1718409183881,-6064.15,0.00026849,3]
[329512347,1718409183892,-658.84,0.00026849,3]
[329512348,1718409183904,-386.88145193,0.00026849,3]
[329512349,1718409183919,-1250.84,0.00026849,3]
[329512350,1718409183929,-1457.35,0.00026849,3]
[329512351,1718409183954,-2523.73,0.00026849,3]
[329512352,1718409183973,-521.47,0.00026849,3]
[329512353,1718409183983,-699.17,0.00026849,3]
[329512354,1718409183996,-500.0,0.00026849,3]
[329512355,1718409184009,-1061.25,0.00026849,3]
[329512356,1718409184021,-896.88,0.00026849,3]
[329512357,1718409184032,-669.5,0.00026849,3]
[329512358,1718409184132,-532.32,0.00026849,3]
[329512359,1718409184172,-2252.2,0.00026849,3]
[329512360,1718409184218,-1329.78,0.00026849,3]
[329512361,1718409184283,-889.55,0.00026849,3]
[329512362,1718409184321,-403.42235916,0.00026849,3]
[329512363,1718409184339,-726.83,0.00026849,3]
[329512364,1718409184374,-1121.95,0.00026849,3]
[329512365,1718409184400,-500.0,0.00026849,3]
[329512366,1718409184437,-2002.63,0.00026849,3]
[329512367,1718409184474,-635.93,0.00026849,3]
[329512368,1718409184485,-500.0,0.00026849,3]
[329512369,1718409184502,-749.23,0.00026849,3]
[329512370,1718409184513,-1013.7,0.00026849,3]
[329512371,1718409184564,-1297.0,0.00026849,3]
[329512372,1718409184582,-1218.43,0.00026849,3]
[329512373,1718409184616,-814.13,0.00026849,3]
[329512374,1718409184626,-1069.53,0.00026849,3]
[329512375,1718409184713,-2089.69,0.00026849,3]
[329512376,1718409184768,-728.21,0.00026849,3]
[329512377,1718409184836,-4506.65,0.00026849,3]
[329512378,1718409184852,-505.75,0.00026849,3]
[329512379,1718409184873,-1029.14,0.00026849,3]
[329512380,1718409184928,-1722.19,0.00026849,3]
[329512381,1718409184966,-1126.29,0.00026849,3]
[329512382,1718409184978,-1013.4,0.00026849,3]
[329512383,1718409185010,-690.09,0.00026849,3]
[329512384,1718409185076,-2735.56,0.00026849,3]
[329512385,1718409185088,-2174.79,0.00026849,3]
[329512386,1718409185110,-725.51,0.00026849,3]
[329512387,1718409185145,-3237.71,0.00026849,3]
[329512388,1718409185164,-817.48,0.00026849,3]
[329512389,1718409185197,-2378.83,0.00026849,3]
[329512390,1718409185236,-692.48,0.00026849,3]
[329512391,1718409185311,-1135.87,0.00026849,3]
[329512392,1718409185390,-158.27876525,0.00026859,2]
[329512393,1718409185412,-200.0,0.00026865,2]
[329512394,1718409185457,-177.90534913,0.00026866,2]
[329512395,1718409185474,-177.90534913,0.00026874,2]
[329512396,1718409185485,-346.68116762,0.00026877,2]
[329512397,1718409185496,-155.85640551,0.00026878,2]
[329512398,1718409185552,-200.0,0.000269,9]
[329512399,1718409185564,-345.07952264,0.000269,2]
[329512400,1718409185592,-327.3453691,0.000269,2]
[329512401,1718409185610,-3512.46118545,0.000269,2]
[329512402,1718409185622,-346.68116762,0.00026901,2]
[329512403,1718409185635,-889.76097,0.00026917,2]
[329512404,1718409185676,-153.04376479,0.00026922,2]
[329512405,1718409185697,-644.46,0.00026941,2]
[329512406,1718409185720,-150.0,0.00026947,2]
[329512407,1718409185742,-201.47087301,0.00026967,2]
[329512408,1718409185759,-152.0,0.00026969,5]
[329512409,1718409185776,-286.06239349,0.00027,2]
[329512410,1718409185792,-234.36480998,0.00027,2]
[329512411,1718409185822,-8393.42865483,0.00027,2]
[329512412,1718409185834,-11060.18608605,0.00027,2]
[329512413,1718409185845,-256710.41873489,0.00027,2]
[329512414,1718409185866,-738.0,0.00027,2]
[329512415,1718409185932,-740.68726999,0.00027,2]
[329512416,1718409186069,-1809.49,0.00027,2]
[329512417,1718409186105,-250.0,0.00027,2]
[329512418,1718409186178,-1107.0,0.00027,2]
[329512419,1718409186212,-3047.50293653,0.00027,30]
[329512420,1718409186237,-19063.4,0.00027,2]
[329512421,1718409186268,-1400.0,0.00027,2]
[329512422,1718409186409,-876.0,0.00027,15]
[329512423,1718409186438,-692.48526,0.00027,2]
[329512424,1718409186449,-2000.0,0.00027,2]
[329512425,1718409186501,-150.0,0.00027,4]
[329512426,1718409186512,-200.0,0.00027,2]
[329512427,1718409186548,-3436.987818,0.0002701,2]
[329512428,1718409186561,-159.01700298,0.00027012,2]
[329512429,1718409186575,-151.0,0.00027013,2]
[329512430,1718409186592,-153.48233137,0.00027029,2]
[329512431,1718409186616,-160.92444028,0.00027046,2]
[329512432,1718409186628,-203.67017798,0.00027046,2]
[329512433,1718409186683,-161.2923465,0.00027056,2]
[329512434,1718409186694,-155.15668265,0.00027057,2]
[329512435,1718409186710,-171.2344305,0.00027074,2]
[329512436,1718409186735,-154.43145431,0.0002708,2]
[329512437,1718409186776,-457.50732763,0.00027096,2]
[329512438,1718409186812,-590.85,0.000271,2]
[329512439,1718409186832,-155.15668265,0.00027105,2]
[329512440,1718409186865,-997.96,0.00027115,2]
[329512441,1718409186902,-4928.91154559,0.00027116,2]
[329512442,1718409186928,-4928.91154559,0.00027121,2]
[329512443,1718409187022,-577.87975608,0.00027122,2]
[329512444,1718409187044,-500.0,0.00027123,2]
[329512445,1718409187081,-500.0,0.00027123,2]
[329512446,1718409187128,-500.0,0.00027123,2]
[329512447,1718409187148,-500.0,0.00027123,2]
[329512448,1718409187172,-500.0,0.00027123,2]
[329512449,1718409187208,-500.0,0.00027123,2]
[329512450,1718409187232,-500.0,0.00027123,3]
[329512451,1718409187268,-749.79,0.00027123,3]
[329512452,1718409187309,-500.0,0.00027123,3]
[329512453,1718409187342,-600.48,0.00027123,3]
[329512454,1718409187365,-2000.0,0.00027123,3]
[329512455,1718409187378,-293.7288941,0.00027123,3]
[329512456,1718409187395,-1018.08,0.00027123,3]
[329512457,1718409187409,-500.0,0.00027123,3]
[329512458,1718409187422,-1175.7,0.00027123,3]
[329512459,1718409187445,-1691.46,0.00027123,3]
[329512460,1718409187463,-24506.13,0.00027123,3]
[329512461,1718409187486,-777.76,0.00027123,3]
[329512462,1718409187508,-1854.16,0.00027123,3]
[329512463,1718409187550,-1055.98,0.00027123,3]
[329512464,1718409187562,-606.70441211,0.00027123,3]
[329512465,1718409187574,-1198.09,0.00027123,3]
[329512466,1718409187586,-516.41,0.00027123,3]
[329512467,1718409187597,-615.26,0.00027123,3]
[329512468,1718409187609,-6231.18,0.00027123,3]
[329512469,1718409187621,-1046.77,0.00027123,3]
[329512470,1718409187632,-3586.27,0.00027123,3]
[329512471,1718409187647,-561.85,0.00027123,3]
[329512472,1718409187658,-968.93,0.00027123,3]
[329512473,1718409187701,-1857.88,0.00027123,3]
[329512474,1718409187742,-2183.55,0.00027123,3]
[329512475,1718409187792,-844.51,0.00027123,3]
[329512476,1718409187810,-836.87,0.00027123,3]
[329512477,1718409187829,-500.0,0.00027123,3]
[329512478,1718409187850,-1991.89,0.00027123,3]
[329512479,1718409187864,-5690.91,0.00027123,3]
[329512480,1718409187891,-969.41,0.00027123,3]
[329512481,1718409187912,-18610.37,0.00027123,3]
[329512482,1718409187925,-20167.93,0.00027123,3]
[329512483,1718409187939,-1674.49,0.00027123,3]
[329512484,1718409187968,-3030.53,0.00027123,3]
[329512485,1718409187996,-500.0,0.00027123,3]
[329512486,1718409188052,-966.56,0.00027123,3]
[329512487,1718409188075,-575.07,0.00027123,3]
[329512488,1718409188104,-598.46,0.00027123,3]
[329512489,1718409188148,-2076.84,0.00027123,3]
[329512490,1718409188176,-682.08,0.00027123,3]
[329512491,1718409188195,-1822.84,0.00027123,3]
[329512492,1718409188236,-5529.61,0.00027123,3]
[329512493,1718409188268,-1655.24,0.00027123,3]
[329512494,1718409188294,-786.01,0.00027123,3]
[329512495,1718409188333,-3184.07,0.00027123,3]
[329512496,1718409188384,-574.58,0.00027123,3]
[329512497,1718409188396,-11746.88,0.00027123,3]
[329512498,1718409188460,-662.27,0.00027123,3]
[329512499,1718409188500,-1212.45,0.00027123,3]
[329512500,1718409188517,-6064.15,0.00027123,3]
[329512501,1718409188552,-658.84,0.00027123,3]
[329512502,1718409188624,-1250.84,0.00027123,3]
[329512503,1718409188641,-1457.35,0.00027123,3]
[329512504,1718409188688,-2523.73,0.00027123,3]
[329512505,1718409188698,-521.47,0.00027123,3]
[329512506,1718409188709,-699.17,0.00027123,3]
[329512507,1718409188720,-500.0,0.00027123,3]
[329512508,1718409188813,-1061.25,0.00027123,3]
[329512509,1718409188854,-896.88,0.00027123,3]
[329512510,1718409188893,-669.5,0.00027123,3]
[329512511,1718409188908,-532.32,0.00027123,3]
[329512512,1718409188958,-2252.2,0.00027123,3]
[329512513,1718409188998,-1329.78,0.00027123,3]
[329512514,1718409189062,-889.55,0.00027123,3]
[329512515,1718409189111,-726.83,0.00027123,3]
[329512516,1718409189212,-1121.95,0.00027123,3]
[329512517,1718409189306,-500.0,0.00027123,3]
[329512518,1718409189388,-2002.63,0.00027123,3]
[329512519,1718409189425,-635.93,0.00027123,3]
[329512520,1718409189465,-500.0,0.00027123,3]
[329512521,1718409189490,-749.23,0.00027123,3]
[329512522,1718409189552,-1013.7,0.00027123,3]
[329512523,1718409189640,-1297.0,0.00027123,3]
[329512524,1718409189671,-1218.43,0.00027123,3]
[329512525,1718409189717,-814.13,0.00027123,3]
[329512526,1718409189776,-1069.53,0.00027123,3]
[329512527,1718409189865,-2089.69,0.00027123,3]
[329512528,1718409189964,-728.21,0.00027123,3]
[329512529,1718409190004,-4506.65,0.00027123,3]
[329512530,1718409190036,-505.75,0.00027123,3]
[329512531,1718409190074,-1029.14,0.00027123,3]
[329512532,1718409190132,-1722.19,0.00027123,3]
[329512533,1718409190187,-1126.29,0.00027123,3]
[329512534,1718409190216,-1013.4,0.00027123,3]
[329512535,1718409190305,-690.09,0.00027123,3]
[329512536,1718409190374,-2174.79,0.00027123,3]
[329512537,1718409190423,-2735.56,0.00027123,3]
[329512538,1718409190439,-725.51,0.00027123,3]
[329512539,1718409190472,-817.48,0.00027123,3]
[329512540,1718409190491,-3237.71,0.00027123,3]
[329512541,1718409190545,-2378.83,0.00027123,3]
[329512542,1718409190562,-692.48,0.00027123,3]
[329512543,1718409190581,-1135.87,0.00027123,3]
[329512544,1718409190597,-3458.8,0.00027123,2]
[329512545,1718409190635,-230.41188732,0.0002715,2]
[329512546,1718409190673,-12338.52293741,0.00027153,2]
[329512547,1718409190741,-203.67017798,0.00027154,2]
[329512548,1718409190792,-453.85,0.00027155,2]
[329512549,1718409190813,-153.48233137,0.00027173,2]
[329512550,1718409190857,-150.38481616,0.00027179,2]
[329512551,1718409190894,-457.50732763,0.00027193,2]
[329512552,1718409190912,-1707.68462048,0.000272,2]
[329512553,1718409190935,-452.71,0.000272,2]
[329512554,1718409190973,-346.68116762,0.00027204,2]
[329512555,1718409191054,-457.50732763,0.00027209,2]
[329512556,1718409191085,-150.0,0.0002722,2]
[329512557,1718409191123,-165.4093236,0.00027221,2]
[329512558,1718409191190,-161.2923465,0.00027235,2]
[329512559,1718409191222,-577.87975608,0.00027245,2]
[329512560,1718409191277,-586.37063159,0.00027248,2]
[329512561,1718409191353,-166.66666667,0.00027249,2]
[329512562,1718409191401,-150.38481616,0.00027263,2]
[329512563,1718409191428,-230.41188732,0.00027296,2]
[329512564,1718409191445,-230.41188732,0.00027304,2]
[329512565,1718409191465,-203.67017798,0.00027316,2]
[329512566,1718409191497,-586.37063159,0.00027334,2]
[329512567,1718409191524,-153.48233137,0.00027337,2]
[329512568,1718409191581,-150.0,0.00027364,2]
[329512569,1718409191601,-284.0,0.00027366,5]
[329512570,1718409191620,-11095.17,0.0002737,2]
[329512571,1718409191637,-635.11913575,0.0002737,2]
[329512572,1718409191653,-166.66666668,0.00027371,2]
[329512573,1718409191669,-166.66666667,0.00027385,2]
[329512574,1718409191713,-289.99250474,0.0002739,25]
[329512575,1718409191729,-291.95810585,0.0002739,30]
[329512576,1718409191749,-1111.48906615,0.00027397,30]
[329512577,1718409191779,-1000.0,0.00027397,30]
[329512578,1718409191795,-708.0,0.00027397,30]
[329512579,1718409191814,-2000.0,0.00027397,30]
[329512580,1718409191879,-2000.0,0.00027397,30]
[329512581,1718409191912,-2000.0,0.00027397,30]
[329512582,1718409191939,-2123.292281,0.00027397,30]
[329512583,1718409191976,-500.0,0.00027397,3]
[329512584,1718409192004,-174.39,0.00027397,2]
[329512585,1718409192069,-749.79,0.00027397,3]
[329512586,1718409192105,-500.0,0.00027397,3]
[329512587,1718409192163,-1000.0,0.00027397,2]
[329512588,1718409192189,-1000.0,0.00027397,2]
[329512589,1718409192219,-1000.0,0.00027397,2]
[329512590,1718409192238,-1000.0,0.00027397,2]
[329512591,1718409192254,-1000.0,0.00027397,2]
[329512592,1718409192279,-1000.0,0.00027397,2]
[329512593,1718409192297,-1000.0,0.00027397,2]
[329512594,1718409192314,-1000.0,0.00027397,2]
[329512595,1718409192330,-600.48,0.00027397,3]
[329512596,1718409192346,-732.7386069,0.00027397,3]
[329512597,1718409192388,-1018.08,0.00027397,3]
[329512598,1718409192415,-271.85434821,0.00027397,3]
[329512599,1718409192430,-150.0,0.00027397,2]
[329512600,1718409192450,-150.0,0.00027397,3]
[329512601,1718409192467,-153.22798981,0.00027397,3]
[329512602,1718409192489,-1175.7,0.00027397,3]
[329512603,1718409192521,-1691.46,0.00027397,3]
[329512604,1718409192732,-777.76,0.00027397,3]
[329512605,1718409192754,-24506.13,0.00027397,3]
[329512606,1718409192844,-1854.16,0.00027397,3]
[329512607,1718409192862,-1055.98,0.00027397,3]
[329512608,1718409192878,-1198.09,0.00027397,3]
[329512609,1718409192904,-516.41,0.00027397,3]
[329512610,1718409192935,-615.26,0.00027397,3]
[329512611,1718409192949,-6231.18,0.00027397,3]
[329512612,1718409192965,-1046.77,0.00027397,3]
[329512613,1718409192979,-3586.27,0.00027397,3]
[329512614,1718409193010,-4928.91154559,0.00027397,2]
[329512615,1718409193041,-561.85,0.00027397,3]
[329512616,1718409193070,-968.93,0.00027397,3]
[329512617,1718409193097,-1857.88,0.00027397,3]
[329512618,1718409193122,-2183.55,0.00027397,3]
[329512619,1718409193143,-844.51,0.00027397,3]
[329512620,1718409193164,-836.87,0.00027397,3]
[329512621,1718409193200,-500.0,0.00027397,3]
[329512622,1718409193236,-1991.89,0.00027397,3]
[329512623,1718409193252,-5690.91,0.00027397,3]
[329512624,1718409193263,-969.41,0.00027397,3]
[329512625,1718409193277,-18610.37,0.00027397,3]
[329512626,1718409193289,-20167.93,0.00027397,3]
[329512627,1718409193312,-1674.49,0.00027397,3]
[329512628,1718409193358,-3030.53,0.00027397,3]
[329512629,1718409193385,-245.09067875,0.00027397,3]
[329512630,1718409193420,-966.56,0.00027397,3]
[329512631,1718409193435,-575.07,0.00027397,3]
[329512632,1718409193445,-598.46,0.00027397,3]
[329512633,1718409193456,-2076.84,0.00027397,3]
[329512634,1718409193467,-682.08,0.00027397,3]
[329512635,1718409193485,-500.0,0.00027397,2]
[329512636,1718409193520,-500.0,0.00027397,2]
[329512637,1718409193533,-476.87975524,0.00027397,2]
[329512638,1718409193544,-500.0,0.00027397,2]
[329512639,1718409193556,-500.0,0.00027397,2]
[329512640,1718409193566,-393.32367116,0.00027397,2]
[329512641,1718409193579,-500.0,0.00027397,2]
[329512642,1718409193594,-500.0,0.00027397,2]
[329512643,1718409193606,-500.0,0.00027397,2]
[329512644,1718409193633,-1822.84,0.00027397,3]
[329512645,1718409193676,-500.0,0.00027397,2]
[329512646,1718409193691,-1500.0,0.00027397,2]
[329512647,1718409193701,-1500.0,0.00027397,3]
[329512648,1718409193716,-1500.0,0.00027397,3]
[329512649,1718409193727,-5529.61,0.00027397,3]
[329512650,1718409193737,-1536.5819715,0.00027397,3]
[329512651,1718409193749,-1655.24,0.00027397,3]
[329512652,1718409193759,-786.01,0.00027397,3]
[329512653,1718409193770,-3184.07,0.00027397,3]
[329512654,1718409193782,-574.58,0.00027397,3]
[329512655,1718409193801,-11746.88,0.00027397,3]
[329512656,1718409193816,-662.27,0.00027397,3]
[329512657,1718409193826,-500.0,0.00027397,2]
[329512658,1718409193837,-500.0,0.00027397,2]
[329512659,1718409193847,-500.0,0.00027397,2]
[329512660,1718409193858,-500.0,0.00027397,2]
[329512661,1718409193868,-500.0,0.00027397,2]
[329512662,1718409193879,-500.0,0.00027397,2]
[329512663,1718409193916,-1212.45,0.00027397,3]
[329512664,1718409193930,-6064.15,0.00027397,3]
[329512665,1718409193964,-658.84,0.00027397,3]
[329512666,1718409193978,-1250.84,0.00027397,3]
[329512667,1718409193990,-500.0,0.00027397,2]
[329512668,1718409194000,-500.0,0.00027397,2]
[329512669,1718409194010,-500.0,0.00027397,2]
[329512670,1718409194021,-500.0,0.00027397,2]
[329512671,1718409194031,-500.0,0.00027397,2]
[329512672,1718409194042,-1457.35,0.00027397,3]
[329512673,1718409194053,-500.0,0.00027397,2]
[329512674,1718409194063,-500.0,0.00027397,2]
[329512675,1718409194073,-2523.73,0.00027397,3]
[329512676,1718409194084,-521.47,0.00027397,3]
[329512677,1718409194099,-500.0,0.00027397,2]
[329512678,1718409194110,-500.0,0.00027397,2]
[329512679,1718409194120,-699.17,0.00027397,3]
[329512680,1718409194135,-500.0,0.00027397,3]
[329512681,1718409194146,-1061.25,0.00027397,3]
[329512682,1718409194164,-896.88,0.00027397,3]
[329512683,1718409194175,-500.0,0.00027397,2]
[329512684,1718409194196,-500.0,0.00027397,2]
[329512685,1718409194208,-500.0,0.00027397,2]
[329512686,1718409194241,-500.0,0.00027397,2]
[329512687,1718409194308,-500.0,0.00027397,2]
[329512688,1718409194320,-500.0,0.00027397,2]
[329512689,1718409194365,-669.5,0.00027397,3]
[329512690,1718409194377,-532.32,0.00027397,3]
[329512691,1718409194425,-2252.2,0.00027397,3]
[329512692,1718409194437,-1329.78,0.00027397,3]
[329512693,1718409194473,-889.55,0.00027397,3]
[329512694,1718409194484,-726.83,0.00027397,3]
[329512695,1718409194523,-1121.95,0.00027397,3]
[329512696,1718409194564,-500.0,0.00027397,2]
[329512697,1718409194583,-500.0,0.00027397,2]
[329512698,1718409194625,-500.0,0.00027397,3]
[329512699,1718409194659,-500.0,0.00027397,2]
[329512700,1718409194675,-500.0,0.00027397,2]
[329512701,1718409194688,-500.0,0.00027397,2]
[329512702,1718409194708,-500.0,0.00027397,2]